[Event "57th Biel Festival MTO 2024"]
[White "Koustav Chatterjee"]
[Black "Jumabayev,Rinat"]
[Site "Biel"]
[Round "4.2"]
[Annotator "TA"]
[Result "1/2-1/2"]
[Date "2024.07.18"]
[WhiteElo "2525"]
[BlackElo "2575"]
[PlyCount "57"]
[TimeControl "60"]

{[%evp 9,57,22,22,8,12,14,7,0,5,12,3,5,15,23,25,28,27,13,27,35,29,41,64,48,63,50,62,28,40,26,31,29,72,22,32,6,2,0,0,0,2,6,-1,-9,-20,-32,0,0,0,0]} 1. Nf3 {[%emt 0:0:4]} d5 {[%emt 0:5:21]} 2. g3 {[%emt 0:0:9]} c5 {[%emt 0:0:51]} 3. Bg2 {[%emt 0:0:8]} Nf6 {[%emt 0:0:45]} 4. O-O {[%emt 0:0:6]} g6 {[%emt 0:3:16]} 5. c4 {[%emt 0:0:35]} Bg7 {[%emt 0:2:17]} 6. Qa4+ {[%emt 0:0:28]} Bd7 {[%emt 0:32:4][%cal Bc8d7,Bd7e6,Be6d5,Bd5c6][%mdl 32]} 7. Qb3 {[%emt 0:4:0][%csl LRb7,LRd5]} dxc4 {[%emt 0:1:15]} 8. Qxc4 {[%emt 0:0:24]} (8. Qxb7 $2 {loses.} Bc6 9. Ne5 Bxb7 $19 )Qb6 {[%emt 0:2:41]} 9. Ne5 {[%emt 0:34:23]} Be6 {[%emt 0:4:25]} 10. Qa4+ {[%emt 0:0:43]} Nbd7 {[%emt 0:1:59]} 11. Nc4 $36 {[%emt 0:7:0][%mdl 2048] Black is under pressure.} Qc7 {[%emt 0:1:51]} 12. d3 {[%emt 0:9:53]} Bd5 {[%emt 0:7:47]} 13. Bf4 {[%emt 0:0:50]} Qc8 {[%emt 0:0:58]} 14. e4 {[%emt 0:14:14]} Bc6 {[%emt 0:2:44]} 15. Qb3 {[%emt 0:11:30]} O-O {[%emt 0:4:25]} 16. Nc3 {[%emt 0:0:0]} Nh5 {[%emt 0:7:18]} 17. Bg5 {[%emt 0:4:6]} Qd8 {[%emt 0:6:10]} 18. Nd5 {[%emt 0:5:36]} Nhf6 {[%emt 0:2:45]} 19. a4 {[%emt 0:7:0]} e6 {[%emt 0:10:33]} 20. Nc3 {[%emt 0:0:0][%cal Bd5c3,Bc3b5,Bb5c7][%mdl 32]} Qb8 {[%emt 0:2:2] Repels e5} 21. h3 {[%emt 0:7:45] White has more active pieces.} (21. Bf4 $16 e5 22. Bd2 )Ne5 $11 {[%emt 0:1:23]} 22. Nxe5 {[%emt 0:0:6]} Qxe5 {[%emt 0:0:10]} 23. Bf4 {[%emt 0:0:2]} Qd4 {[%emt 0:0:31]} 24. Nb5 {[%emt 0:1:17]} Qd7 {[%emt 0:2:19]} 25. Rfd1 {[%emt 0:0:36]} Rfd8 {[%emt 0:2:47]} 26. Nc7 {[%emt 0:1:3]} Rac8 {[%emt 0:0:21]} 27. Nb5 {[%emt 0:0:2]} Ra8 {[%emt 0:1:1]} (27... b6 $5 )28. Nc7 {[%emt 0:0:17]} Rac8 {[%emt 0:0:46]} 29. Nb5 {[%emt 0:0:5] Weighted Error Value: White=0.07 (flawless) /Black=0.06 (flawless) .  Mistake:       	White=1     	---        Inaccurate:     	White=2     	Black=2      OK:         	White=11    	Black=12     Best:        	White=1     	---} 1/2-1/2

[Event "57th Biel Festival MTO 2024"]
[White "Aryan Chopra"]
[Black "Xue,Haowen"]
[Site "Biel"]
[Round "4.3"]
[Annotator "TA"]
[Result "1-0"]
[Date "2024.07.18"]
[WhiteElo "2631"]
[BlackElo "2452"]
[PlyCount "115"]
[TimeControl "60"]

{[%evp 36,115,17,18,15,5,0,20,10,13,49,39,61,49,91,68,69,75,82,85,134,133,187,136,127,127,134,114,130,133,121,120,132,71,61,62,76,72,154,59,180,26,266,244,325,309,424,440,467,481,605,593,597,572,551,525,518,518,662,659,845,830,864,887,935,916,929,875,1868,1686,1309,979,1868,1627,1508,1505,8985,5678,5422,5503,5503,3920]} 1. e4 {[%emt 0:0:3]} c6 {[%emt 0:0:5]} 2. d4 {[%emt 0:0:5]} d5 {[%emt 0:0:4]} 3. e5 {[%emt 0:0:4]} Bf5 {[%emt 0:0:4]} 4. h4 {[%emt 0:0:10]} h5 {[%emt 0:0:5]} 5. c4 {[%emt 0:0:5]} e6 {[%emt 0:0:24]} 6. Nc3 {[%emt 0:0:7]} Ne7 {[%emt 0:1:28]} 7. Nge2 {[%emt 0:0:29] B12: Caro-Kann: Advance Variation.} Nd7 {[%emt 0:3:22]} 8. Ng3 {[%emt 0:0:17]} Bg6 {[%emt 0:0:33]} 9. Bg5 {[%emt 0:0:28]} Qb6 {[%emt 0:3:32]} 10. Rc1 $1 {[%emt 0:0:34] The main line 10.Rc1 scores better than 10.Qd2.} dxc4 {[%emt 0:4:7]} 11. Bxc4 {[%emt 0:0:57]} Rd8 {[%emt 0:0:25]} 12. Na4 {[%emt 0:10:35]} Qa5+ {[%emt 0:0:28]} 13. Bd2 {[%emt 0:9:21]} Qc7 {[%emt 0:0:6]} 14. O-O {[%emt 0:0:7]} Nb6 {[%emt 0:14:46]} 15. Ba5 {[%emt 0:13:40]} Nf5 {[%emt 0:1:55]} 16. Nxf5 {[%emt 0:3:21]} Bxf5 {[%emt 0:0:2]} 17. Rc3 $146 {[%emt 0:14:35]} ({Predecessor:} 17. Re1 Be7 18. g3 O-O 19. Bb3 g6 20. Qd2 Kh7 21. Qe3 Rg8 22. Kg2 g5 23. Bc2 Bxc2 24. Rxc2 gxh4 25. Qf3 Rxd4 26. Qxf7+ Rg7 27. Qxh5+ Kg8 28. Qe8+ {½-½ Enescu,C (2419)-Montgomery,R (2284) EU-chT12 sf1 email 2021} )Be7 {[%emt 0:24:53]} 18. Rb3 {[%emt 0:12:6]} Qd7 {[%emt 0:0:33]} 19. Nxb6 {[%emt 0:0:57]} axb6 {[%emt 0:0:26]} 20. Bxb6 {[%emt 0:1:11]} Ra8 {[%emt 0:0:5]} 21. a3 {[%emt 0:4:5]} Bxh4 {[%emt 0:0:52]} 22. Bd3 {[%emt 0:2:59]} Be7 {[%emt 0:5:14]} 23. Bxf5 {[%emt 0:3:16]} exf5 {[%emt 0:0:3]} 24. Qf3 {[%emt 0:0:7]} g6 {[%emt 0:4:54]} 25. Rd1 {[%emt 0:2:10]} O-O {[%emt 0:13:11]} 26. d5 {[%emt 0:0:5]} cxd5 {[%emt 0:1:44]} 27. Qxd5 {[%emt 0:0:17]} Qxd5 {[%emt 0:3:32]} (27... Qc6 $142 )28. Rxd5 $16 {[%emt 0:0:5]} Rac8 {[%emt 0:1:26]} (28... Rfc8 $16 )29. Be3 {[%emt 0:5:58]} (29. Rd7 $1 $18 {[%cal Rd7e7]} Rfe8 30. g3 (30. Rxb7 Rc1+ 31. Kh2 Rc4 $16 ))Rc7 $16 {[%emt 0:0:49]} 30. Rdb5 $1 {[%emt 0:3:23]} Rb8 {[%emt 0:0:51]} 31. e6 {[%emt 0:2:17]} Bd6 {[%emt 0:1:52]} 32. Rb6 {[%emt 0:3:12]} Rd8 {[%emt 0:1:17] [#]} 33. exf7+ $1 {[%emt 0:0:19]} ({Resist} 33. Rxb7 $6 fxe6 34. Rxc7 Bxc7 $11 )Rxf7 {[%emt 0:1:13] [#]} 34. Rxb7 {[%emt 0:0:54]} (34. g3 $142 $1 )f4 $16 {[%emt 0:0:17]} 35. Ba7 $1 {[%emt 0:4:14]} Be5 {[%emt 0:1:18]} 36. Kf1 {[%emt 0:8:19]} Rd2 {[%emt 0:8:32]} (36... g5 $142 )37. a4 {[%emt 0:6:27]} (37. Rxf7 $16 Kxf7 38. a4 )Rf6 {[%emt 0:0:23]} ({Black should play} 37... Rxb7 $1 $14 38. Rxb7 Bxb2 )38. Re7 $2 {[%emt 0:0:55]} ({Better is} 38. R7b6 $18 {And now a5 would win.} Rf7 39. Rxg6+ Kh7 40. Rg5 )Bd6 $2 {[%emt 0:1:53]} (38... Rxb2 $11 {and Black stays safe.} 39. Rxb2 Bxb2 )39. Re4 $18 {[%emt 0:0:43]} Bc7 {[%emt 0:5:56]} 40. Bd4 {[%emt 0:0:55]} Rd6 {[%emt 0:0:38]} 41. Bc3 {[%emt 0:2:57]} Rc2 {[%emt 0:0:19]} 42. Rb7 {[%emt 0:2:44]} (42. Rxf4 $2 {too greedy.} Rd1+ 43. Be1 Bxf4 $19 )Rd1+ {[%emt 0:4:37]} 43. Re1 {[%emt 0:2:8]} Rxe1+ {[%emt 0:0:28]} 44. Kxe1 {[%emt 0:0:44]} Bd6 {[%emt 0:0:12]} 45. Rg7+ {[%emt 0:1:20]} Kf8 {[%emt 0:0:5]} 46. Rxg6 {[%emt 0:0:4]} Be7 {[%emt 0:0:5]} 47. a5 {[%emt 0:0:47]} f3 {[%emt 0:0:35]} 48. gxf3 {[%emt 0:0:29]} h4 {[%emt 0:0:28]} 49. Rh6 {[%emt 0:3:22]} Kf7 {[%emt 0:1:53]} 50. f4 {[%emt 0:1:39]} Rc1+ {[%emt 0:1:1]} 51. Ke2 {[%emt 0:0:22]} Rh1 {[%emt 0:1:22]} 52. a6 {[%emt 0:1:31]} Ra1 {[%emt 0:0:17]} 53. Kf3 {[%emt 0:0:56]} Ra4 {[%emt 0:0:46]} 54. Kg4 {[%emt 0:1:7]} Bc5 {[%emt 0:0:15]} 55. b4 {[%emt 0:1:37]} Bxf2 {[%emt 0:0:26]} 56. b5 {[%emt 0:0:12]} Be3 {[%emt 0:0:18]} 57. Be5 {[%emt 0:0:25]} Rb4 {[%emt 0:0:9]} 58. a7 {[%emt 0:0:34]} 1-0

[Event "57th Biel Festival MTO 2024"]
[White "Mendonca,Leon Luke"]
[Black "Deuer,Marius"]
[Site "Biel"]
[Round "4.4"]
[Annotator "TA"]
[Result "1-0"]
[Date "2024.07.18"]
[WhiteElo "2634"]
[BlackElo "2435"]
[PlyCount "123"]
[TimeControl "60"]

{[%evp 32,123,125,135,136,136,125,91,96,95,99,105,102,94,130,101,103,91,134,134,201,195,202,187,196,175,198,191,189,202,245,241,253,245,244,238,236,251,233,64,73,68,84,47,44,10,11,-18,106,68,89,59,94,96,93,3,2,7,24,3,87,87,87,87,87,87,87,87,586,586,240,529,926,837,1123,1096,1045,940,842,951,29966,29955,29978,29979,29979,29980,29980,29981,29981,29982,29981,29982,29982,29983]} 1. e4 {[%emt 0:1:32]} c6 {[%emt 0:0:6]} 2. d4 {[%emt 0:0:27]} d5 {[%emt 0:0:6]} 3. e5 {[%emt 0:0:16]} Bf5 {[%emt 0:0:14]} 4. Nf3 {[%emt 0:0:15]} e6 {[%emt 0:0:7]} 5. Be2 {[%emt 0:0:11]} c5 {[%emt 0:0:38]} 6. c3 {[%emt 0:0:52]} Nc6 {[%emt 0:3:41]} 7. O-O {[%emt 0:0:9]} cxd4 {[%emt 0:6:21] B12: Caro-Kann (Vorstoß-Variante).} 8. Nxd4 {[%emt 0:0:31]} Nge7 {[%emt 0:3:37]} 9. Bb5 {[%emt 0:0:44]} a6 {[%emt 0:11:10]} 10. Bxc6+ {[%emt 0:2:28]} bxc6 {[%emt 0:5:34]} 11. Be3 {[%emt 0:27:46]} Bg6 $146 {[%emt 0:15:45]} ({Predecessor:} 11... c5 12. Nb3 Nc6 13. Nxc5 Bxc5 14. Bxc5 Nxe5 15. Nd2 f6 16. Qh5+ Bg6 17. Qh3 Bf5 18. Qh5+ Bg6 19. Qh3 Bf5 20. Qh5+ {½-½ Galiana Fernandez,A (2260)-Sos Andreu,E (2343) Mutxamel IM 2nd 2020 (4)} )12. Nd2 {[%emt 0:7:24]} c5 {[%emt 0:11:25]} 13. N4b3 {[%emt 0:1:8]} c4 {[%emt 0:0:5]} 14. Nc5 {[%emt 0:7:52]} Qb8 {[%emt 0:9:19]} 15. Nxc4 {[%emt 0:3:49]} Nf5 {[%emt 0:0:25]} 16. Na3 {[%emt 0:1:0]} Bxc5 {[%emt 0:9:22]} 17. Bxc5 {[%emt 0:5:36]} Qc7 {[%emt 0:1:38]} 18. b4 {[%emt 0:5:38]} Ne7 {[%emt 0:1:50]} 19. Re1 {[%emt 0:16:16]} O-O {[%emt 0:1:3]} 20. Nc2 {[%emt 0:0:24]} Rfc8 {[%emt 0:9:52]} 21. Nd4 {[%emt 0:0:26]} Nc6 {[%emt 0:0:12]} 22. Qe2 {[%emt 0:2:24]} Be4 {[%emt 0:1:19]} 23. f3 {[%emt 0:9:28]} Bg6 {[%emt 0:0:25]} 24. Nb3 {[%emt 0:0:23]} Nd8 {[%emt 0:3:35]} 25. a4 {[%emt 0:1:35]} a5 {[%emt 0:0:45]} (25... Nb7 $16 26. Bd4 Bf5 )26. b5 $18 {[%emt 0:1:13]} ({Lieber nicht} 26. Nxa5 Rxa5 27. Bd4 Raa8 $17 )(26. bxa5 Nb7 27. Bb4 Nxa5 28. Nxa5 (28. Bxa5 Rxa5 29. Nxa5 Qxa5 $18 )Rxa5 29. Bxa5 Qxa5 $18 )Nb7 {[%emt 0:0:5]} 27. Bd4 $1 {[%emt 0:0:4]} Qd8 {[%emt 0:1:34]} 28. Ra2 {[%emt 0:0:48]} Qe7 {[%emt 0:0:52]} 29. Qe3 {[%emt 0:0:38]} Rc4 {[%emt 0:2:1]} 30. h3 {[%emt 0:2:28]} h5 {[%emt 0:2:1]} 31. Kh1 {[%emt 0:0:25]} Rac8 {[%emt 0:2:17]} 32. Kh2 {[%emt 0:0:2]} Bf5 {[%emt 0:1:40]} 33. Ree2 {[%emt 0:1:9]} Bb1 {[%emt 0:0:41]} 34. Ra1 {[%emt 0:0:7]} Bg6 {[%emt 0:0:11]} 35. Ree1 $2 {[%emt 0:0:14]} (35. Rea2 $18 )Bc2 $14 {[%emt 0:0:18]} 36. Nd2 {[%emt 0:1:31]} Rxa4 {[%emt 0:0:12]} 37. Rxa4 {[%emt 0:5:14]} Bxa4 {[%emt 0:0:7]} 38. Qd3 {[%emt 0:1:12]} Nc5 {[%emt 0:3:49]} 39. Qb1 {[%emt 0:0:10]} Qb7 {[%emt 0:3:6]} (39... Qg5 $11 40. Re2 Nd7 )40. b6 {[%emt 0:1:42]} Bd7 {[%emt 0:2:0]} 41. Rc1 {[%emt 0:17:59]} a4 {[%emt 0:15:51]} 42. c4 {[%emt 0:11:0]} Na6 {[%emt 0:9:28]} 43. cxd5 {[%emt 0:1:59]} (43. Qb2 $16 )Qxd5 $11 {[%emt 0:3:31]} 44. Rxc8+ {[%emt 0:0:47]} Bxc8 {[%emt 0:0:1]} 45. Qc2 {[%emt 0:2:12]} Qxd4 {[%emt 0:10:19]} (45... Bd7 $11 46. Qd3 Bb5 )46. Qxc8+ $16 {[%emt 0:0:50]} Kh7 {[%emt 0:0:4]} 47. Qxa6 {[%emt 0:2:51]} Qf4+ {[%emt 0:0:5]} 48. Kh1 {[%emt 0:0:37]} Qxd2 {[%emt 0:0:7]} 49. Qxa4 {[%emt 0:1:55]} Qe1+ $2 {[%emt 0:0:5][%mdl 8192]} (49... Qc1+ $16 {leistet mehr Widerstand.} 50. Kh2 Qb2 )50. Kh2 $18 {[%emt 0:0:2]} Qxe5+ {[%emt 0:0:8]} 51. f4 {[%emt 0:0:5]} Qb2 {[%emt 0:5:27] [#]} 52. Qe4+ $1 {[%emt 0:3:43]} Kh6 {[%emt 0:5:34]} 53. b7 {[%emt 0:0:53]} Qb6 {[%emt 0:0:5] [#]} 54. f5 $1 {[%emt 0:2:14]} Qd6+ {[%emt 0:1:38]} 55. Kg1 {[%emt 0:4:8]} Qd1+ {[%emt 0:2:59]} 56. Kf2 {[%emt 0:0:8]} Qd2+ {[%emt 0:0:5]} 57. Kf3 {[%emt 0:0:38]} Qd1+ {[%emt 0:0:6]} 58. Kg3 {[%emt 0:2:37]} Qb3+ {[%emt 0:2:8]} 59. Qf3 {[%emt 0:0:32]} h4+ {[%emt 0:0:11]} 60. Kxh4 {[%emt 0:0:34]} Qb4+ {[%emt 0:0:9]} 61. Kg3 {[%emt 0:15:8]} e5 {[%emt 0:15:49]} 62. Qg4 {[%emt 0:0:18]} 1-0

[Event "57th Biel Festival MTO 2024"]
[White "Assaubayeva,Bibisara"]
[Black "Nesterov,Arseniy"]
[Site "Biel"]
[Round "4.5"]
[Annotator "TA"]
[Result "1/2-1/2"]
[Date "2024.07.18"]
[WhiteElo "2472"]
[BlackElo "2609"]
[PlyCount "41"]
[TimeControl "60"]

{[%evp 17,41,13,25,18,14,9,32,25,13,15,13,18,12,10,12,16,20,8,16,8,25,31,39,7,13,5]} 1. c4 {[%emt 0:0:15]} e6 {[%emt 0:3:0]} 2. Nc3 {[%emt 0:0:22]} d5 {[%emt 0:0:6]} 3. d4 {[%emt 0:0:5]} Nf6 {[%emt 0:0:10]} 4. Bg5 {[%emt 0:0:7]} Be7 {[%emt 0:0:44]} 5. e3 {[%emt 0:0:9]} O-O {[%emt 0:0:31]} 6. Nf3 {[%emt 0:0:8]} Nbd7 {[%emt 0:5:1]} 7. Qc2 {[%emt 0:2:25]} h6 {[%emt 0:1:17]} 8. Bh4 {[%emt 0:0:18]} c5 {[%emt 0:1:1]} 9. cxd5 {[%emt 0:6:9]} Nxd5 {[%emt 0:0:8]} 10. Bxe7 {[%emt 0:0:38]} Nxe7 {[%emt 0:0:5]} 11. dxc5 {[%emt 0:6:8]} Qa5 {[%emt 0:15:32]} 12. a3 {[%emt 0:3:35] b4 would now be deadly. White is slightly better.} Qxc5 {[%emt 0:0:11]} 13. b4 {[%emt 0:2:12]} Qc7 {[%emt 0:1:1]} 14. Rc1 {[%emt 0:0:9]} a5 {[%emt 0:4:23]} 15. Be2 {[%emt 0:6:13]} axb4 {[%emt 0:0:15]} 16. axb4 {[%emt 0:0:3]} Nf6 {[%emt 0:4:56]} 17. O-O {[%emt 0:0:38]} Qb6 {[%emt 0:0:15]} 18. Qb3 {[%emt 0:4:18]} Ned5 {[%emt 0:1:51]} 19. Nxd5 {[%emt 0:3:8]} Nxd5 {[%emt 0:0:3]} 20. Bc4 {[%emt 0:0:51]} Nf6 {[%emt 0:0:56]} 21. Ne5 {[%emt 0:3:41] Weighted Error Value: White=0.05 (flawless) /Black=0.04 (flawless) .  Inaccurate:     	White=1     	---        OK:         	White=5     	Black=4} 1/2-1/2

[Event "57th Biel Festival MTO 2024"]
[White "Ganguly,Surya Shekhar"]
[Black "Razafindratsima,Timothe"]
[Site "Biel"]
[Round "4.6"]
[Annotator "TA"]
[Result "1/2-1/2"]
[Date "2024.07.18"]
[WhiteElo "2575"]
[BlackElo "2445"]
[PlyCount "113"]
[TimeControl "60"]

{[%evp 38,113,-12,-17,-17,-18,-18,0,-6,-20,-20,-24,0,0,7,0,0,-6,0,0,0,0,0,0,0,0,0,0,0,-25,-25,-25,-25,-21,-19,-26,-18,-54,-54,-50,-51,-54,-61,-67,-46,-81,0,0,0,0,0,0,0,0,0,0,0,0,0,0,0,0,0,0,0,0,0,0,0,0,0,0,0,0,0,0,0,41]} 1. e4 {[%emt 0:0:5]} c5 {[%emt 0:0:10]} 2. Nf3 {[%emt 0:0:7]} e6 {[%emt 0:0:5]} 3. Nc3 {[%emt 0:0:27]} Nc6 {[%emt 0:0:9]} 4. d4 {[%emt 0:0:10]} cxd4 {[%emt 0:0:8]} 5. Nxd4 {[%emt 0:0:5]} Nf6 {[%emt 0:0:12]} 6. Nxc6 {[%emt 0:0:24]} bxc6 {[%emt 0:0:7]} 7. e5 {[%emt 0:0:4]} Nd5 {[%emt 0:0:7]} 8. Ne4 {[%emt 0:0:5]} Bb7 {[%emt 0:0:35]} 9. c4 {[%emt 0:1:11] B45: Sicilian Four Knights.} Nb4 {[%emt 0:0:35]} 10. c5 {[%emt 0:3:24]} Qb8 {[%emt 0:0:32]} 11. f4 {[%emt 0:0:38]} Ba6 {[%emt 0:0:34]} 12. a3 {[%emt 0:5:44]} Bxf1 {[%emt 0:0:16]} 13. Rxf1 {[%emt 0:0:5]} Nd5 {[%emt 0:0:16]} 14. Rf3 {[%emt 0:0:8] 14.Qd4 is vanishing.} Be7 {[%emt 0:0:41]} 15. b3 $146 {[%emt 0:5:5]} ({Predecessor:} 15. Qc2 f5 16. exf6 Nxf6 17. Rb3 Qc7 18. Nxf6+ Bxf6 19. Be3 O-O 20. O-O-O Rab8 21. Rd2 Rxb3 22. Qxb3 {½-½ Moussard,J (2686)-Grandelius,N (2651) Bundesliga 2223 2022 (10.7)} )f5 {[%emt 0:9:9]} 16. Nd6+ {[%emt 0:0:17]} Bxd6 {[%emt 0:0:5]} 17. exd6 {[%emt 0:0:5]} Qd8 {[%emt 0:0:24]} 18. Qd2 {[%emt 0:16:12]} Qh4+ {[%emt 0:22:44]} 19. Kf1 {[%emt 0:0:55]} Nf6 {[%emt 0:3:11]} (19... Qxh2 $2 20. Rh3 $18 )20. Bb2 {[%emt 0:1:31]} Ne4 {[%emt 0:2:59]} (20... Qxh2 $2 21. Bxf6 gxf6 22. Rh3 $18 )21. Qe3 {[%emt 0:0:23]} Rb8 {[%emt 0:3:13]} (21... Qxh2 $2 22. Rh3 $18 (22. Bxg7 Qh1+ 23. Qg1 Nd2+ 24. Ke2 Qxg1 $11 )(22. Bxg7 Qh1+ 23. Qg1 Qxg1+ 24. Kxg1 Rg8 $11 ))22. Kg1 {[%emt 0:3:21]} (22. Bxg7 $2 Rg8 (22... Rxb3 23. Qxb3 Nd2+ 24. Kg1 $11 )23. Bd4 (23. Rh3 $2 Qg4 $19 )Rxb3 (23... Qxh2 $2 24. Ra2 $19 )24. Qxb3 Nd2+ (24... Qxh2 $2 25. Ra2 $18 )25. Kg1 Nxb3 26. Rxb3 Qxf4 $19 )O-O {[%emt 0:5:30]} 23. Rh3 {[%emt 0:6:10]} Qg4 {[%emt 0:2:22]} 24. Re1 {[%emt 0:0:17]} Qg6 {[%emt 0:4:49]} (24... h5 {is interesting.} 25. Qc1 h4 26. Bd4 Rb5 )25. Qc1 {[%emt 0:5:7]} Nf6 {[%emt 0:7:19]} 26. Rg3 {[%emt 0:2:20]} Qf7 $1 {[%emt 0:0:55]} 27. Bd4 {[%emt 0:8:28]} h6 {[%emt 0:3:18]} 28. Qb2 {[%emt 0:6:50]} Kh7 {[%emt 0:1:44]} 29. Ree3 {[%emt 0:1:5]} Nh5 {[%emt 0:3:58]} 30. Rgf3 {[%emt 0:0:21]} Nf6 {[%emt 0:0:28]} 31. Rg3 {[%emt 0:5:23]} Nh5 {[%emt 0:0:6]} 32. Rgf3 {[%emt 0:0:8]} Nf6 {[%emt 0:0:3]} 33. Bxf6 {[%emt 0:5:37]} Qxf6 {[%emt 0:1:2]} 34. Qxf6 {[%emt 0:0:9]} gxf6 {[%emt 0:3:5]} 35. b4 {[%emt 0:3:29]} Rb5 {[%emt 0:4:7]} 36. Rb3 {[%emt 0:4:38]} Rfb8 {[%emt 0:10:56]} 37. Rfc3 {[%emt 0:0:40]} a5 {[%emt 0:2:50]} 38. Rc4 {[%emt 0:0:16]} Kg7 {[%emt 0:4:19]} 39. Kf2 {[%emt 0:1:6]} Kf7 {[%emt 0:0:43]} 40. Ke2 {[%emt 0:1:58]} h5 {[%emt 0:7:16]} 41. Kd3 {[%emt 0:54:39]} a4 {[%emt 0:56:1]} ({Better is} 41... e5 $17 )42. Rb2 {[%emt 0:2:17]} Rg8 {[%emt 0:0:20]} 43. Rf2 {[%emt 0:6:35]} Rg4 {[%emt 0:0:0]} 44. Rcc2 {[%emt 0:0:0]} Rb8 {[%emt 0:0:0]} 45. Rb2 {[%emt 0:0:0]} h4 {[%emt 0:0:0]} 46. Ke3 {[%emt 0:0:0]} Rbg8 {[%emt 0:0:0]} 47. b5 {[%emt 0:0:0]} cxb5 {[%emt 0:0:0]} 48. Rxb5 {[%emt 0:0:0]} e5 $1 {[%emt 0:0:0]} (48... Rxg2 49. Rb7 R2g7 (49... Rxf2 $2 50. Rxd7+ Ke8 51. Re7+ Kf8 52. Kxf2 $18 )50. Rxd7+ Ke8 51. Rxg7 Rxg7 52. c6 $18 )49. fxe5 {[%emt 0:0:0]} fxe5 {[%emt 0:0:0]} 50. Rxf5+ {[%emt 0:0:0]} Ke6 {[%emt 0:0:0]} 51. Rh5 {[%emt 0:0:0]} Rxg2 {[%emt 0:0:0]} 52. Rxh4 {[%emt 0:0:0]} Kd5 {[%emt 0:0:0]} 53. c6+ {[%emt 0:0:0]} (53. Rxa4 $2 {perishes.} Rxh2 54. Kf3 Rhg2 55. c6+ Ke6 $19 (55... Kxc6 56. Rxe5 R8g3+ 57. Kf4 $11 )(55... Kxc6 56. Rxe5 R8g3+ 57. Kf4 $15 ))Kxc6 {[%emt 0:0:0]} 54. Rxe5 {[%emt 0:0:0]} Rb8 {[%emt 0:0:0]} 55. Rxa4 {[%emt 0:0:0]} Rxh2 {[%emt 0:0:0]} 56. Ra6+ {[%emt 0:0:0]} Rb6 {[%emt 0:0:0]} 57. Rxb6+ {[%emt 0:0:0]} 1/2-1/2

[Event "57th Biel Festival MTO 2024"]
[White "Petkidis,Anthony"]
[Black "Moiseenko,Alexander"]
[Site "Biel"]
[Round "4.7"]
[Annotator "TA"]
[Result "0-1"]
[Date "2024.07.18"]
[WhiteElo "2427"]
[BlackElo "2560"]
[PlyCount "88"]
[TimeControl "60"]

{[%evp 16,87,22,0,0,0,0,0,0,2,0,0,8,12,7,0,14,-68,-57,-114,-113,-106,-74,-74,-84,-84,-80,-104,-100,-118,-112,-208,-213,-300,-304,-277,-235,-243,-253,-276,-271,-363,-360,-337,-242,-240,-242,-264,-131,-130,-135,-128,-133,-119,-125,-126,-122,-262,-260,-598,-547,-5406,-814,-29989,-29990,-29990,-29991,-29991,-29981,-29994,-29995,-29998,-29999,-29999]} 1. e4 {[%emt 0:0:6]} c5 {[%emt 0:0:13]} 2. Nf3 {[%emt 0:0:20]} Nc6 {[%emt 0:0:18]} 3. d4 {[%emt 0:0:13]} cxd4 {[%emt 0:0:5]} 4. Nxd4 {[%emt 0:0:7]} Nf6 {[%emt 0:0:4]} 5. Nc3 {[%emt 0:0:13]} e5 {[%emt 0:0:4]} 6. Ndb5 {[%emt 0:0:14]} d6 {[%emt 0:0:4]} 7. Nd5 {[%emt 0:0:37]} Nxd5 {[%emt 0:0:8]} 8. exd5 {[%emt 0:0:8]} Nb8 {[%emt 0:0:8]} 9. a4 {[%emt 0:1:10]} Be7 {[%emt 0:0:27]} 10. Bd2 {[%emt 0:0:33]} Nd7 {[%emt 0:1:12]} 11. Bb4 {[%emt 0:3:44]} O-O {[%emt 0:2:43] Die Stellung ist ausgeglichen.} 12. Bxd6 {[%emt 0:15:7]} Bxd6 {[%emt 0:0:29]} 13. Nxd6 {[%emt 0:0:8]} Nf6 {[%emt 0:0:25] Es drohte c4} 14. Nxc8 {[%emt 0:7:31]} Rxc8 {[%emt 0:0:6]} 15. c3 {[%emt 0:32:43]} Nxd5 {[%emt 0:1:48]} 16. Qb3 {[%emt 0:8:25]} (16. g3 $11 )Nf4 $15 {[%emt 0:4:9]} 17. Rd1 {[%emt 0:3:46]} (17. g3 $1 $15 Nd3+ 18. Bxd3 Qxd3 19. Rd1 Qe4+ 20. Kd2 )Qc7 {[%emt 0:5:42] Droht stark ...Qc6.} 18. Qc2 {[%emt 0:3:48]} Rfd8 {[%emt 0:6:27]} 19. g3 {[%emt 0:3:15]} Qc6 {[%emt 0:2:29]} 20. Rg1 {[%emt 0:0:22]} Ne6 {[%emt 0:1:15][%cal Oe6d4]} 21. Bg2 {[%emt 0:2:27]} Qa6 {[%emt 0:2:36]} 22. Be4 {[%emt 0:5:27]} g6 {[%emt 0:5:27]} 23. Rd2 {[%emt 0:1:23]} (23. Bd3 $17 Qa5 24. Rh1 )Nc5 $19 {[%emt 0:6:42]} 24. b3 {[%emt 0:12:5]} (24. f3 {ist eine bessere Verteidigung.} )Rxd2 {[%emt 0:11:21]} 25. Kxd2 {[%emt 0:0:8]} Qb6 {[%emt 0:0:16] ...Nxe4+ wäre nun fies.} 26. Ke2 {[%emt 0:2:57]} Nxb3 {[%emt 0:1:10] Und ...Nd4+ würde nun gewinnen.} (26... Qxb3 27. Qxb3 Nxb3 28. Bxb7 Rxc3 29. Re1 $11 )27. Kf1 {[%emt 0:1:11]} Rd8 $1 {[%emt 0:1:33] Zielt auf ...Rd2 ab.} 28. Qe2 {[%emt 0:0:37] Weiss hat schwache schwarze Felder} Rd2 {[%emt 0:3:6]} 29. Qe1 {[%emt 0:0:24]} Qa6+ {[%emt 0:9:30]} 30. Kg2 {[%emt 0:0:11]} Re2 {[%emt 0:0:17]} 31. Qb1 {[%emt 0:1:27]} Nc5 {[%emt 0:6:29]} (31... Qxa4 32. Bf3 Rd2 33. Re1 $11 )(31... Qc4 $19 {ist viel giftiger.} 32. Bxb7 Qxc3 (32... Qxa4 33. Bd5 $11 ))32. Bf3 $17 {[%emt 0:1:3]} Rd2 $36 {[%emt 0:0:9][%mdl 2048] ...e4 ist eine echte Drohung. Weiss steht unter starkem Druck.} 33. Rd1 {[%emt 0:1:54]} Qd6 {[%emt 0:11:51] Schwarz steht deutlich aktiver.} 34. Rxd2 {[%emt 0:0:4]} Qxd2 {[%emt 0:0:4]} 35. Bxb7 {[%emt 0:0:43]} Qxc3 {[%emt 0:1:20][%mdl 4096] Endspiel. KQB-KQN} ({Natürlich nicht} 35... Nxa4 $6 36. Qb5 Nxc3 37. Qe8+ (37. Qxe5 Qd7 $11 )Kg7 38. Qxe5+ Kg8 39. Qb8+ Kg7 40. Qxa7 $11 )36. Qb5 {[%emt 0:1:39] Danach ist Weiß chancenlos.} (36. Bc6 $17 )Qd4 $19 {[%emt 0:0:51][%cal Oc5d3] Und jetzt ...Nd3! wäre schön.} 37. a5 $2 {[%emt 0:2:10] [#]} (37. Qb1 {ist eine bessere Chance.} )Nd3 $1 {[%emt 0:5:52]} 38. f3 {[%emt 0:0:2]} Kg7 {[%emt 0:0:32]} (38... Qf2+ $142 39. Kh3 Qf1+ 40. Kh4 Qe2 41. Qe8+ Kg7 )39. Be4 {[%emt 0:0:29]} Qf2+ {[%emt 0:2:27] Schwarz setzt Matt.} 40. Kh3 {[%emt 0:0:3] [#]} Qf1+ $1 {[%emt 0:0:36]} (40... Nc5 41. Bd5 $17 )41. Kh4 {[%emt 0:50:8]} Qe2 {[%emt 0:50:30]} 42. h3 {[%emt 0:0:0] [#]} Qe3 $1 {[%emt 0:0:0]} 43. Qxd3 {[%emt 0:0:0]} (43. f4 Qe2 )Qh6+ {[%emt 0:0:0]} 44. Kg4 {[%emt 0:0:0]} Qh5# {[%emt 0:0:0] Gewichteter Fehlerwert: Weiß=0.67/Schwarz=0.25 (präzise) .  Fehler:       	Weiß=6     	Schwarz=2     Ungenau:       	Weiß=3     	Schwarz=1     OK:         	Weiß=7     	Schwarz=14    Bester:       	Weiß=5     	Schwarz=2     Stark:        	---       	Schwarz=2} 0-1